Cogmind - Beta 17 @@@ ROGUE MODE // 2026.08.17 @ 22:39:41 Player: THN-L0C Result: Destroyed by S-10 Pest with Light Assault Rifle Performance ------------- Evolutions (0) 0 Regions Visited (3) 600 Robots Destroyed (25) 125 Value Destroyed (585) 585 Prototype IDs (14) 280 Alien Tech Used (0) 0 Bonus (125) 125 TOTAL SCORE: 1715 Bonus ------- Follower Combat Kills 125 Cogmind --------- Core Integrity 0/250 Matter 284/300 Energy 193/250 System Corruption 0% Temperature Cool (0) Movement Core (950) Ox18 Location -10/Subcaves Parts ------- > --- POWER (1+1) ------ Ion Engine > --- PROPULSION (2) --- (None) > --- UTILITY (2) ------ Improved Heat Sink High-capacity Storage Unit > --- WEAPON (2) ------- Powered Cannon > --- INVENTORY (20) --- Subdweller Power Source Spiked Treads Aluminum Leg Subdweller Monowheel Subdweller Monowheel Subdweller Monowheel Improved Heat Sink Small Storage Unit High-capacity Matter Pod (200) High-capacity Matter Pod (200) Improved Terrain Scanner Makeshift Hacking Suite Self-contained Transmogrifier Subdweller Laser Beamcaster Battle Rifle Multitool Makeshift Spear Peak State ------------ > --- POWER ------------ Ion Engine > --- PROPULSION ------- Carbon-fiber Leg Makeshift Leg > --- UTILITY ---------- Improved Heat Sink High-capacity Storage Unit > --- WEAPON ----------- Riot Gun Makeshift Spear > --- INVENTORY -------- Subdweller Power Source Spiked Treads Aluminum Leg Subdweller Monowheel Subdweller Monowheel Subdweller Monowheel Improved Heat Sink Small Storage Unit High-capacity Matter Pod High-capacity Matter Pod Improved Terrain Scanner Makeshift Hacking Suite Self-contained Transmogrifier Subdweller Laser Beamcaster Powered Cannon Battle Rifle Rocket Launcher Multitool [Rating: 25] Favorites ----------- Power Ion Engine Engine Ion Engine Propulsion Aluminum Leg Leg Aluminum Leg Utility Improved Heat Sink Device Improved Heat Sink Storage Small Storage Unit Weapon Medium Laser Energy Gun Medium Laser Energy Cannon Powered Cannon Launcher Rocket Launcher Piercing Weapon Makeshift Spear Special Melee Weapon Datajack Build | -11 -10 -10 -10 ------- Run | Yrd Mat Min Sub Slots Evolved . | . . . . Power . | . . . . Propulsion . | . . . . Utility . | . . . . Weapon . | . . . . Parts Attached 24 | 7 4 5 8 Power 3 | 1 . 1 1 Engine 3 | 1 . 1 1 Core . | . . . . Reactor . | . . . . Propulsion 5 | 2 . 2 1 Treads . | . . . . Leg 5 | 2 . 2 1 Wheel . | . . . . Hover . | . . . . Flight . | . . . . Utility 7 | 2 2 2 1 Device 5 | 1 2 1 1 Storage 2 | 1 . 1 . Processor . | . . . . Hackware . | . . . . Protection . | . . . . Artifact . | . . . . Weapon 9 | 2 2 . 5 Energy Gun 5 | 2 1 . 2 Energy Cannon 1 | . . . 1 Ballistic Gun . | . . . . Ballistic Cannon . | . . . . Launcher 1 | . . . 1 Special Weapon . | . . . . Impact Weapon . | . . . . Slashing Weapon . | . . . . Piercing Weapon 1 | . . . 1 Special Melee Weapon 1 | . 1 . . Unidentified Prototypes . | . . . . Parts Lost 7 | . 2 . 5 Power 1 | . . . 1 Propulsion 2 | . . . 2 Utility 1 | . 1 . . Weapon 3 | . 1 . 2 Highest Loss Streak 3 | . 2 . 3 To Critical Strikes . | . . . . Average Backups 11 | . 6 7 16 Power 1 | . . 1 1 Propulsion 1 | . . . 3 Utility 4 | . 4 3 6 Weapon 3 | . 1 2 4 Tool/Special . | . . . . Unused Backups 20 | . . 3 17 Power 2 | . . . 2 Propulsion 4 | . . . 4 Utility 7 | . . 2 5 Weapon 5 | . . 1 4 Tool/Special 2 | . . . 2 Average Slot Usage (%) 99 | . 99 100 99 Engine 14 | . 14 14 14 Leg 27 | . 28 28 27 Device 13 | . 13 14 14 Storage 14 | . 14 14 14 Energy Gun 21 | . 27 28 15 Piercing Weapon 5 | . . . 10 Peak Build Rating 25 | 7 9 16 25 Average Rating 15 | 5 8 12 22 On Entrance 8 | . 7 9 16 Avg Prop Armor Cover (%) . | . . . . Naked Turns . | . . . . Heaviest Build 54 | 15 15 15 54 Greatest Support 35 | 20 20 30 35 Greatest Overweight (x) 1 | 1 . . 1 Average Overweight (x) . | . . . . Largest Inventory Capacity 20 | 8 8 20 20 Average Capacity 13 | 7 8 8 19 Most Carried 20 | 2 8 8 20 Average Carried 11 | . 6 7 16 Final Capacity 20 | 8 8 8 20 Final Carried 18 | 2 7 8 18 Class Distribution -------------------- 55% | Mutant 44% | Scavenger-Mutant Dominant Class ---------------- Mutant | -10/Materials Mutant | -10/Mines Scavenger-Mutant | -10/Subcaves Resources | -11 -10 -10 -10 ----------- Run | Yrd Mat Min Sub Matter Collected 688 | 270 50 80 288 Remotely . | . . . . Salvage Created 597 | 29 229 106 233 Parts 43 | 4 12 11 16 Haulers Intercepted 1 | . 1 . . Recyclers Shooed 3 | 1 2 . . Parts Field Recycled . | . . . . Retrieved Matter . | . . . . Parts Self-Destructed 7 | . . . 7 Prevented . | . . . . Parts Restored . | . . . . Kills | -11 -10 -10 -10 ------- Run | Yrd Mat Min Sub Combat Hostiles Destroyed 15 | . 2 4 9 Melee 2 | . . . 2 Guns 7 | . 2 3 2 AOE 5 | . . . 5 Classes Destroyed 8 | 1 5 1 1 Worker 2 | . 1 1 . Tunneler 4 | 2 2 . . Hauler 1 | . 1 . . Operator 1 | . 1 . . Watcher 2 | . 2 . . Swarmer 3 | . . 3 . Grunt 3 | . 2 1 . Subdweller 9 | . . . 9 Best Kill Streak 3 | 1 2 2 3 Combat Bots Only 3 | . 1 2 3 Max Kills in Single Turn 2 | 1 2 1 1 Gunslinging . | . . . . Exploded 1 | . . . 1 Melee 1 | . . . 1 Uniques/NPCs Destroyed . | . . . . Combat | -11 -10 -10 -10 -------- Run | Yrd Mat Min Sub Hostile Shots Fired 89 | . 13 32 44 Missed 29 | . 1 16 12 Hits 60 | . 12 16 32 Projectile 60 | . 12 16 32 Critical Strikes 2 | . . . 2 Damage Taken 998 | . 207 161 630 Core 254 | . 11 38 205 Absorbed by Shields . | . . . . Core Remaining (%) 100 | 100 . . . Volleys Fired 77 | 5 34 12 26 Largest 2 | 2 2 2 2 Hottest 125 | 100 100 100 125 Shots Fired 144 | 10 68 24 42 Gun 129 | 10 68 24 27 Cannon 1 | . . . 1 Launcher 14 | . . . 14 Special . | . . . . Kinetic . | . . . . Thermal 126 | 10 68 24 24 Explosive 14 | . . . 14 Electromagnetic 4 | . . . 4 Robot Hit Streak 13 | 2 9 7 13 Robot Miss Streak 3 | 1 3 3 1 Penetration Max . | . . . . Secondary Targets 1 | . 1 . . Max Gunslinging Chain 1 | . 1 . . Shots Hit Robots 95 | 5 40 14 36 Core Hits 40 | 3 14 7 16 Critical Kills . | . . . . Critical Parts Destroyed . | . . . . Critical Strikes 15 | 1 4 3 7 Burn 15 | 1 4 3 7 Melee Attacks 20 | . . . 20 Impact . | . . . . Slashing . | . . . . Piercing 20 | . . . 20 Sneak Attacks . | . . . . Combat Hostiles . | . . . . Follow-up Attacks . | . . . . Damage Inflicted 2151 | 62 523 188 1378 Guns 1099 | 62 523 187 327 Cannons 55 | . . . 55 Explosions 937 | . . . 937 Melee 59 | . . . 59 Ramming 1 | . . 1 . Kinetic . | . . . . Thermal 1115 | 62 523 187 343 Explosive 937 | . . . 937 Electromagnetic 39 | . . . 39 Impact . | . . . . Slashing . | . . . . Piercing 59 | . . . 59 Highest Corruption . | . . . . Average Corruption . | . . . . Corruption Purged . | . . . . Corruption Blocked . | . . . . Overload Shots . | . . . . Overflow Damage 36 | . . . 36 Projectiles 15 | . . . 15 Explosions 21 | . . . 21 Melee . | . . . . Knockbacks . | . . . . Impact . | . . . . Kinetic . | . . . . Secondary . | . . . . Self-Inflicted Damage 29 | . . . 29 Shots 1 | . . . 1 Rammed . | . . . . Targets Rammed 1 | . . 1 . Kicked 1 | . . 1 . Crushed . | . . . . Highest Temperature 300 | 117 300 8 252 Average Temperature 89 | 51 96 5 147 Received Heat Transfer 546 | . 102 39 405 Siege Activations . | . . . . Martial Activations . | . . . . Shielding Activations . | . . . . Robots Disrupted . | . . . . Combat Hostiles . | . . . . Robots Corrupted . | . . . . Combat Hostiles . | . . . . Parts Fried 1 | . 1 . . Impact Corruptions . | . . . . Robots Melted 1 | . . 1 . Combat Hostiles 1 | . . 1 . Parts Melted 6 | . 3 1 2 Heat Transferred 4144 | 259 1850 777 1258 Parts Sabotaged . | . . . . Parts Stolen . | . . . . Parts Stripped . | . . . . Power Chain Reactions . | . . . . Alert | -11 -10 -10 -10 ------- Run | Yrd Mat Min Sub Maximum Alert Level . | . . . . Low Security (%) 100 | 100 100 100 . Level 1 . | . . . . Level 2 . | . . . . Level 3 . | . . . . Level 4 . | . . . . Level 5 . | . . . . High Security . | . . . . Max Security . | . . . . Peak Influence 56 | 5 40 56 . Initial . | . . . . Average 5 | 1 1 11 . Influence Increases 345 | 10 134 201 . Destroy 0b10 Robot/C 180 | . 40 140 . Destroy 0b10 Robot/NC 50 | 10 35 5 . Destroy Leader 46 | . 16 30 . Allied During Kill 11 | . . 11 . Trap Triggered on 0b10 20 | . 20 . . Successful Hack 23 | . 23 . . Lose Combat Pursuer 15 | . . 15 . Influence Decreases 345 | 10 134 201 . Time Decay 326 | 10 134 182 . Lost Ally 19 | . . 19 . Squads Dispatched . | . . . . Investigation . | . . . . Extermination . | . . . . Reinforcement . | . . . . Assault . | . . . . Garrison . | . . . . Intercept . | . . . . Searches Triggered . | . . . . Construction Impeded . | . . . . Haulers Reinforced . | . . . . Active Scanning Responses . | . . . . Cargo Convoy Interrupts . | . . . . Stealth | -11 -10 -10 -10 --------- Run | Yrd Mat Min Sub Distress Signals . | . . . . Communications Jammed . | . . . . Distress Signals . | . . . . Times Spotted 31 | . 10 8 13 Peak Tracking Total 4 | . 4 3 3 Tactical Retreats 1 | . . 1 . Traps | -11 -10 -10 -10 ------- Run | Yrd Mat Min Sub Traps Triggered 3 | . 2 . 1 Indirectly . | . . . . Trap Hack Attempts 13 | . 13 . . Triggered . | . . . . Disarmed . | . . . . Reprogrammed 2 | . 2 . . Reused 4 | . 2 . 2 Traps Extracted . | . . . . Installed 2 | . . . 2 Triggered 2 | . 2 . . Most Traps Carried 2 | . . . 2 Machines | -11 -10 -10 -10 ---------- Run | Yrd Mat Min Sub Machines Disabled 1 | . . . 1 Max in Single Turn 1 | . . . 1 Machines Repaired . | . . . . Machines Dismantled . | . . . . Machines Sabotaged . | . . . . Overloaded Fab Kills . | . . . . Hacking | -11 -10 -10 -10 --------- Run | Yrd Mat Min Sub Machines Accessed 8 | . 7 . 1 Terminals 6 | . 6 . . Fabricators . | . . . . Repair Stations 1 | . 1 . . Recycling Units . | . . . . Scanalyzers . | . . . . Garrison Access . | . . . . Total Hacks 22 | . 21 . 1 Successful 12 | . 11 . 1 Failed 10 | . 10 . . Catastrophic 3 | . 3 . . Database Lockouts . | . . . . Manual 19 | . 19 . . Terminals 19 | . 19 . . Fabricators . | . . . . Repair Stations 2 | . 2 . . Recycling Units . | . . . . Scanalyzers . | . . . . Garrison Access . | . . . . Terminal Hacks 2 | . 1 . 1 Zone Layout 1 | . 1 . . Proto ID Catalog 1 | . . . 1 Fabricator Hacks . | . . . . Repair Station Hacks . | . . . . Recycling Unit Hacks . | . . . . Scanalyzer . | . . . . Garrison Access Hacks . | . . . . Unauthorized Hacks 9 | . 9 . . Terminals 9 | . 9 . . Botnet 3 | . 3 . . Operators 1 | . 1 . . Skim 5 | . 5 . . Fabricators . | . . . . Repair Stations . | . . . . Recycling Units . | . . . . Scanalyzers . | . . . . Garrison Access . | . . . . Data Cores Recovered 1 | . 1 . . Used . | . . . . Hacking Detections 7 | . 7 . . Full Trace Events . | . . . . Feedback Events . | . . . . Feedback Blocked . | . . . . Robot Schematics Acquired . | . . . . Robots Built . | . . . . Authchips . | . . . . Time . | . . . . Total Robot Build Rating . | . . . . Part Schematics Acquired . | . . . . Parts Built . | . . . . Authchips . | . . . . Time . | . . . . Total Part Build Rating . | . . . . Part Studies Acquired . | . . . . Parts Repaired . | . . . . Time . | . . . . Parts Recycled . | . . . . Recycled Matter . | . . . . Retrieved Matter . | . . . . Retrieved Components . | . . . . Parts Scanalyzed . | . . . . Part Schematics Acquired . | . . . . Parts Damaged . | . . . . Bothacking | -11 -10 -10 -10 ------------ Run | Yrd Mat Min Sub Used RIF Installer . | . . . . Robots Hacked . | . . . . Non-combat . | . . . . Combat . | . . . . Robot Hacks Applied . | . . . . Relay Couplers Released . | . . . . Fabnet Peak Effective % . | . . . . Robots Rewired . | . . . . Allies Hacked . | . . . . Hacks Repelled . | . . . . Allies | -11 -10 -10 -10 -------- Run | Yrd Mat Min Sub Total Allies 2 | . . 2 . Largest Group 2 | . . 2 1 Highest-Rated Group 49 | . . 49 31 Highest-Rated Ally 31 | . . 31 31 Total Orders . | . . . . Ally Attacks 20 | . . 15 5 Total Damage 280 | . . 240 40 Kills 4 | . . 3 1 Allies Corrupted . | . . . . Allies Melted . | . . . . Intel | -11 -10 -10 -10 ------- Run | Yrd Mat Min Sub Active Infowar (turns) 1011 | 39 972 . . Seismic 1011 | 39 972 . . Robot Analysis Total . | . . . . Derelict Logs Recovered 2 | . . 1 1 Drone Launches . | . . . . Drone Recoveries . | . . . . Exploration | -11 -10 -10 -10 ------------- Run | Yrd Mat Min Sub Turns Passed 4680 | 81 1556 827 2216 Spaces Moved 2098 | 46 460 602 990 Core 5 | 5 . . . Treads . | . . . . Legs 2093 | 41 460 602 990 Wheels . | . . . . Hover . | . . . . Flight . | . . . . Fastest Speed 50 | 50 120 120 130 Average Speed 155 | 114 120 124 193 Slowest Speed 200 | 120 120 130 200 Overloaded Moves . | . . . . Propulsion Burnouts . | . . . . Robots Hopped . | . . . . Potential Cave-ins . | . . . . Cave-ins Triggered . | . . . . Exploration Rate (%) 56 | 4 73 91 59 Regions Visited 3 Branch Regions 2 Pre-discovered Areas 1 | . . 1 . Known Exits Taken 2 | . 1 1 . Unknown Exits Taken 1 | 1 . . . Scrap Searched 8 | . . 2 6 Spaces Dug 2 | . . . 2 Terrain Destroyed 79 | . . . 79 Melee 2 | . . . 2 Projectile . | . . . . AOE 77 | . . . 77 Terrain Rammed . | . . . . Walls Destroyed . | . . . . Machines Disabled . | . . . . Actions | -11 -10 -10 -10 --------- Run | Yrd Mat Min Sub Total 3339 | 61 1394 656 1228 Wait 1042 | 2 873 23 144 Move 2095 | 45 459 601 990 Hop . | . . . . Pick Up 34 | 2 8 5 19 Fast Attach 7 | 7 . . . Attach 5 | . 2 . 3 Detach . | . . . . Swap 25 | . 4 7 14 Drop 18 | . 1 7 10 Fire 77 | 5 34 12 26 Melee 20 | . . . 20 Ram . | . . . . Kick 1 | . . 1 . Crush . | . . . . Escape Stasis . | . . . . Rewire . | . . . . Trap 15 | . 13 . 2 Miscellaneous . | . . . . Route ------- -11/Scrapyard -10/Materials (discovered 5 exits: *Mat x3 / *Min / Sub) -10/Mines (discovered 2 exits: Mat / *Sub) -10/Subcaves (discovered 1 exit: [*Mat]) History --------- Turn | Location | Event 5 | -11/Scrapyard | Discovered new exit (range 16) 82 | -11/Scrapyard | Entered Materials 311 | -10/Materials | Build established: Mutant 489 | -10/Materials | Discovered new exit (range 8) 1093 | -10/Materials | Discovered new exit (range 9) 1181 | -10/Materials | Identified exit to Materials 1260 | -10/Materials | Identified exit to Subcaves 1260 | -10/Materials | Identified exit to Mines 1327 | -10/Materials | Learned 2 Mines zone layouts 1489 | -10/Materials | Loaded intel: 10 trap records 1557 | -10/Materials | Learned location of 2 exits from Materials 1638 | -10/Materials | Entered Mines 1649 | -10/Mines | Learned location of Mines (-9) 1990 | -10/Mines | Received a Rocket Launcher from a helpful Derelict 2273 | -10/Mines | Discovered exit to Subcaves (range 7) 2465 | -10/Mines | Entered Subcaves 2465 | -10/Subcaves | Accompanied by 1 ally 2470 | -10/Subcaves | Led the pair of lost Derelicts to an unsafe place 2478 | -10/Subcaves | Learned location of 1 exit from Materials 2583 | -10/Subcaves | Shifting Twisted Machinery released Multitool 2924 | -10/Subcaves | Build established: Scavenger-Mutant 2979 | -10/Subcaves | Ambushed by Subdwellers from Twisted Machinery 2990 | -10/Subcaves | Ambushed by Subdweller buried in earth 3210 | -10/Subcaves | Shifting Twisted Machinery released Battle Rifle 3645 | -10/Subcaves | Discovered new exit (range 7) 3660 | -10/Subcaves | Shifting Twisted Machinery released Sub. Laser 3672 | -10/Subcaves | Shifting Twisted Machinery released Sub. Power Source 4125 | -10/Subcaves | Core integrity fell below 50% 4154 | -10/Subcaves | Core integrity fell below 20% 4391 | -10/Subcaves | Visited 4L-MR0's lab 4414 | -10/Subcaves | Found Prototype Energy Cannon 4423 | -10/Subcaves | Identified Powered Cannon 4430 | -10/Subcaves | Found Prototype Device 4680 | -10/Subcaves | Attached Powered Cannon, gained temporary slot: Power 4681 | -10/Subcaves | Destroyed by S-10 Pest with Light Assault Rifle Last Messages --------------- Rainbow Chip Procsplitter VL-GR5's Exoskeleton "Deathgrip" Powered Cannon 04429_ Dropped Imp. Heat Sink. 04430_ Acquired Prototype Device. 04437_ 4L-MR0 mumbles: "Who knows where that last prototype ended up, probably tossed aside somewhere as if it were useless junk..." 04474_ Searching scrap... 04474_ Found Battle Cannon. 04474_ Found 48 Matter. 04475_ Acquired 40 matter. 04676_ Rocket Launcher destroyed. 04676_ Destroyed Rocket Launcher. 04676_ Mak. Leg destroyed. 04676_ Destroyed Mak. Leg. 04678_ Dropped Riot Gun. 04679_ Carbon-fiber Leg destroyed. 04680_ Core temporarily expanded with Power slot. 04680_ Destroyed Lgt. Ion Engine. Map ----- +----------------------------------------------------+ | ???????????????????????##"" # " #???????????????? | | ???????????????????????##" ##" #???# ??????? | | ???????????############# " ## ## ?????? | | ??????????##"""""## *## """ ?????? | | ?????????##" #% ## ?????? | | ?????????# ### "="## ?????? | | ?????????#" ##?#""!###" ?????? | | ?????????# #??###%#" ??????? | | ?????????# "#????#&* # ??????? | | ?????????# "###??# ###### ???????? | | ?????????# ##?# # ###### ## ???????? | | ?????????#"[ #### ## # s ##?????????? | | ?????????# "%[ ##" # #??????????? | | ?????????#"" ##&| ## # s ## #??????????? | | ?????????## % "" "%"## # s ####? #?????????? | | ??????????#" *""##& ### ##????? ?????????? | | ??????????###""####### ##?????????????????? | | ????????????####???# ##????????????????? | | ???????????????????# ## ###??????????????? | | ??????????????????## ## ##?????????????? | | ??????????????????# ## #?????????????? | | ??????????????????# ##?????????????? | | ??????????????????## # ## ###??????????????? | | ???????????????????### # #????????????????? | | ?????????????????????# ## #????????????????? | | ?????????????????????# @ ##????????????????? | | ????????????###??###?# ##?????????????????? | | ??########### ### #### * ######??????????????? | | ### ## # #?## %### #??????????????? | | # ##?# !## #??????????????? | | ?? ### ##?????????????? | | #????# #??# ####??????????? | | ####### #???## ??????? | | # " ##???## ??????? | | & ##?### ???????? | | & ### ## ???????? | | ### ## ## ????????? | | &## ### #?# ????????? | | ### ## #??## ????????? | | # # ## ## ##????? ?????????? | | # ## ###### ##??????? ?????????? | | ################ #????# ####??????????????????? | | ###??????????????####????###?????????????????????? | | ?????????????????????????????????????????????????? | | ?????????????????????????????????????????????????? | | ?????????????????????????????????????????????????? | | ?????????????????????????????????????????????????? | | ?????????????????????????????????????????????????? | | ?????????????????????????????????????????????????? | | ?????????????????????????????????????????????????? | +----------------------------------------------------+ Best States ------------- Heat Dissipation 39 Energy Generation 15 Energy Capacity 250 Matter Stores 300 Matter Capacity 300 Sight Range 16 Terrain Scan Density 10 Evasion (%) 55 Item Schematics ----------------- None Robot Schematics ------------------ None Fabricated ------------ Nothing Repaired ---------- Nothing Studied --------- None Alien Tech Used ----------------- None Achievements -------------- None Challenges ------------ None Game ------ Seed TrapNovaBattery Manual? 0 Play Time 00:20:57 Cumulative 443.8 hours Start 2026.08.17 @ 22:19:52 End 2026.08.17 @ 22:39:41 Sessions 1 Manual Loads 0 Difficulty Rogue Special Mode None Game No. 331 Rogue 331 Adventurer 0 Explorer 0 Win Type - Total 9 Types 4/0/3/2/0/0/0/0/0/0 Lore% 78 Gallery% 74 Achievement% 56 Wizard Run 0 Options --------- Layout 2 ASCII 0 Keyboard 1 Movement Vi Keybinds 0 Fullscreen 2 Font 32/SmallcapsGlow Map View 77x44 Zoom Use 0% Tactical HUD 1 Map Filters NONE Filters NONE Steam 1 RUN: a7782ce4-d66d-45a0-b47e-6da0d720a545